bitfinex-derivatives/quotes_BTCF0:USTF0_20210404
["timestamp","ask_amount","ask_price","bid_price","bid_amount"]
[1617544752941,2.41586284,58149.0,58148.0,0.35261933]
[1617544753141,3.91586284,58149.0,58148.0,0.35261933]
[1617544753341,8.91586284,58149.0,58148.0,0.30991933]
[1617544753542,0.2,58148.0,58140.0,0.4330388]
[1617544753741,3.51514,58141.0,58140.0,0.4330388]
[1617544754144,4.50341591,58141.0,58138.0,0.4332067]
[1617544754343,4.50341591,58141.0,58138.0,0.4312067]
[1617544754543,0.24226868,58140.0,58139.0,0.06056717]
[1617544754743,0.44226868,58140.0,58139.0,0.06056717]
[1617544754945,0.44226868,58140.0,58132.0,0.49228034]
[1617544755143,0.74472527,58140.0,58132.0,0.49228034]
[1617544755543,0.74472527,58140.0,58122.0,0.0605676]
[1617544755544,0.24227097,58139.0,58133.0,0.4925094]
[1617544755944,0.30262291,58134.0,58133.0,0.4925094]
[1617544756643,0.40987946,58134.0,58133.0,0.4925094]
[1617544757545,1.40987946,58134.0,58133.0,0.4925094]
[1617544757945,1.40987946,58134.0,58132.0,0.49273666]
[1617544758346,0.30263181,58133.0,58129.0,0.5535316]
[1617544758745,3.6376,58130.0,58129.0,0.5535316]
[1617544758945,3.94024144,58130.0,58129.0,0.49296273]
[1617544759349,3.94024144,58130.0,58129.0,0.55353471]
[1617544759745,3.94024144,58130.0,58126.0,0.49323504]
[1617544760147,3.94024144,58130.0,58129.0,0.06057169]
[1617544760345,0.30264144,58130.0,58129.0,0.06057169]
[1617544760546,0.30264144,58130.0,58129.0,0.49315553]
[1617544760745,1.30264144,58130.0,58129.0,0.49315553]
[1617544760946,1.0,58130.0,58129.0,0.49315553]
[1617544763347,0.30263625,58133.0,58129.0,0.49315553]
[1617544763547,1.0,58130.0,58129.0,0.49315553]
[1617544767451,0.10725655,58134.0,58129.0,0.49315553]
[1617544767651,1.0,58130.0,58129.0,3.65495553]
[1617544767854,1.0,58130.0,58129.0,3.1618]
[1617544768252,1.0,58130.0,58129.0,3.80510418]
[1617544774561,1.0,58130.0,58129.0,4.23677853]
[1617544778470,1.0,58130.0,58129.0,4.58945711]
[1617544781370,1.0,58130.0,58129.0,1.42765711]
[1617544781871,1.0,58130.0,58129.0,1.27623612]
[1617544782671,1.10641,58130.0,58129.0,1.27623612]
[1617544782872,1.10641,58130.0,58129.0,0.78435293]
[1617544783272,1.10641,58130.0,58129.0,1.3347657]
[1617544783673,1.10641,58130.0,58129.0,1.27419471]
[1617544784775,0.10641,58130.0,58129.0,1.27419471]
[1617544784977,1.10641,58130.0,58129.0,1.27419471]
[1617544786475,1.0,58130.0,58129.0,1.27419471]
[1617544790782,0.10725655,58134.0,58129.0,1.27419471]
[1617544791381,0.10725655,58134.0,58133.0,0.78120636]
[1617544792084,1.10725655,58134.0,58133.0,0.78120636]
[1617544793387,1.10725655,58134.0,58133.0,0.35154286]
[1617544793787,1.10725655,58134.0,58133.0,0.4121141]
[1617544793986,4.77775655,58134.0,58133.0,0.4121141]
[1617544794187,4.77775655,58134.0,58133.0,0.35154286]
[1617544794586,5.07976668,58134.0,58133.0,0.4121171]
[1617544794986,5.07976668,58134.0,58133.0,0.35154286]
[1617544795787,5.27976668,58134.0,58133.0,0.35154286]
[1617544795986,5.07976668,58134.0,58133.0,0.35154286]
[1617544796788,5.44198022,58134.0,58131.0,0.41290262]
[1617544797188,5.44198022,58134.0,58129.0,0.35240749]
[1617544797588,0.60450364,58133.0,58130.0,0.35222932]
[1617544797988,0.30185518,58131.0,58130.0,0.35222932]
[1617544799089,1.30185518,58131.0,58130.0,0.35222932]
[1617544800990,1.30185518,58131.0,58130.0,0.45948587]
[1617544801192,1.30185518,58131.0,58130.0,2.99928587]
[1617544801592,1.0,58131.0,58130.0,3.49055517]
[1617544801791,0.30209579,58133.0,58130.0,3.59893517]
[1617544801993,0.30209579,58133.0,58130.0,1.05913517]
[1617544802193,0.30209579,58133.0,58132.0,3.2149]
[1617544802393,0.30205389,58139.0,58132.0,3.99726105]
[1617544802795,0.3020488,58146.0,58132.0,4.63768478]
[1617544802994,0.3020488,58146.0,58138.0,0.10725655]
[1617544803393,3.50374468,58145.0,58138.0,1.37883404]
[1617544803595,1.0,58139.0,58138.0,1.37883404]
[1617544803897,1.0,58140.0,58138.0,0.10725655]
[1617544804296,1.0,58142.0,58138.0,0.95102876]
[1617544804496,0.30205301,58144.0,58139.0,0.2]
[1617544804696,0.30204614,58145.0,58144.0,3.4194]
[1617544804895,0.30204614,58145.0,58144.0,3.64557655]
[1617544805096,0.30204278,58147.0,58144.0,3.64557655]
[1617544805297,0.30204278,58147.0,58145.0,1.5]
[1617544805497,0.30204278,58147.0,58145.0,1.7]
[1617544805699,0.4872,58153.0,58145.0,1.7]
[1617544805700,0.3020302,58150.0,58145.0,1.7]
[1617544806298,0.30201935,58153.0,58150.0,0.2]
[1617544806501,0.30201935,58153.0,58150.0,1.7]
[1617544806700,0.30199735,58158.0,58152.0,6.15295204]
[1617544806902,0.30199735,58158.0,58157.0,0.10725655]
[1617544807100,0.36237669,58160.0,58157.0,0.10725655]
[1617544807101,0.30198929,58160.0,58157.0,0.43187655]
[1617544807501,0.30198929,58160.0,58159.0,0.2]
[1617544807702,0.3019833,58162.0,58160.0,1.5]
[1617544807901,0.3019833,58162.0,58161.0,0.2]
[1617544808102,0.30197675,58164.0,58161.0,2.48029491]
[1617544808503,0.30197675,58164.0,58161.0,3.48029491]
[1617544808704,0.30196342,58165.0,58161.0,3.54084027]
[1617544808903,0.30196342,58165.0,58164.0,0.10725655]
[1617544809106,0.30195236,58169.0,58164.0,1.80725655]
[1617544809506,0.30192765,58171.0,58168.0,0.77913725]
[1617544809705,0.30192765,58171.0,58169.0,0.2]
[1617544810105,1.0,58186.0,58170.0,1.5]
[1617544810106,0.30192212,58172.0,58170.0,1.5]
[1617544810305,0.30192212,58172.0,58171.0,0.2]
[1617544810506,0.36322246,58182.0,58171.0,0.2]
[1617544810507,0.3019196,58174.0,58171.0,0.97887347]
[1617544810707,0.3019196,58174.0,58171.0,2.47887347]
[1617544810908,0.3019196,58174.0,58173.0,0.10725655]
[1617544811110,0.3019196,58174.0,58173.0,2.75925655]
[1617544811309,0.3019196,58174.0,58173.0,4.81025527]
[1617544811812,0.3019196,58174.0,58173.0,4.87079174]
[1617544812612,0.35999835,58190.0,58173.0,4.45925655]
[1617544812811,0.35999835,58190.0,58173.0,5.45925655]
[1617544813013,0.29999881,58190.0,58189.0,0.22593655]
[1617544813414,0.29999239,58195.0,58189.0,0.42593655]
[1617544813613,0.29999239,58195.0,58190.0,1.5]
[1617544813816,0.29999239,58195.0,58191.0,0.2]
[1617544814014,0.29996134,58198.0,58194.0,3.5153]
[1617544814215,0.29996134,58198.0,58194.0,3.7153]
[1617544814614,0.0002,58200.0,58194.0,3.7153]
[1617544815015,0.0002,58200.0,58199.0,0.10725655]
[1617544815216,0.0002,58200.0,58199.0,0.30725655]
[1617544816417,0.0002,58200.0,58199.0,1.80725655]
[1617544816616,0.0002,58200.0,58199.0,2.80725655]
[1617544816837,0.20321375,58212.0,58199.0,2.80725655]
[1617544817018,0.20321375,58212.0,58211.0,0.10725655]
[1617544817217,0.35987207,58219.0,58211.0,0.25396655]
[1617544817417,0.35986717,58223.0,58211.0,0.25396655]
[1617544817616,1.0,58221.0,58211.0,0.25396655]
[1617544818417,0.35986717,58223.0,58211.0,0.25396655]
[1617544819019,0.35986717,58223.0,58221.0,0.10725655]
[1617544819620,0.4671113,58224.0,58221.0,0.10725655]
[1617544820419,0.35985695,58223.0,58221.0,0.10725655]
[1617544820819,1.35985695,58223.0,58222.0,2.6792]
[1617544821017,0.10725655,58224.0,58222.0,2.6792]
[1617544821018,0.46710898,58224.0,58222.0,2.6792]
[1617544821222,1.0,58223.0,58222.0,2.6792]
[1617544821618,1.0,58223.0,58221.0,0.10725655]
[1617544821847,1.0,58223.0,58198.0,0.34726508]
[1617544821848,1.3598541,58223.0,58203.0,3.1923]
[1617544822221,1.0,58211.0,58203.0,3.1923]
[1617544822428,1.0,58212.0,58203.0,3.1923]
[1617544822619,1.0,58216.0,58203.0,3.1923]
[1617544822820,1.0,58217.0,58203.0,3.1923]
[1617544823019,1.0,58217.0,58206.0,0.10725655]
[1617544823221,1.0,58214.0,58206.0,0.10725655]
[1617544823420,0.102,58220.0,58206.0,0.10725655]
[1617544823620,0.179,58230.0,58206.0,0.10725655]
[1617544823621,0.1281,58230.0,58207.0,1.5]
[1617544823821,0.1281,58230.0,58224.0,3.0925]
[1617544824022,1.1281,58230.0,58224.0,3.24084]
[1617544824222,1.0,58226.0,58224.0,3.24084]
[1617544824422,1.1281,58230.0,58224.0,3.24084]
[1617544824827,1.0,58228.0,58224.0,3.24084]
[1617544825025,0.1281,58230.0,58227.0,0.10725655]
[1617544825828,1.0,58228.0,58227.0,0.10725655]
[1617544826028,1.1281,58230.0,58227.0,0.10725655]
[1617544826228,0.1281,58230.0,58227.0,0.10725655]
[1617544826430,1.0,58228.0,58227.0,0.10725655]
[1617544827029,1.10725655,58228.0,58227.0,0.10725655]
[1617544828231,0.10725655,58228.0,58227.0,0.10725655]
[1617544829232,1.10725655,58228.0,58227.0,0.10725655]
[1617544829432,0.10725655,58228.0,58222.0,3.323]
[1617544829632,1.10725655,58228.0,58222.0,3.323]
[1617544829832,1.10725655,58228.0,58222.0,3.2646]
[1617544830232,1.0,58223.0,58222.0,3.2646]
[1617544830432,1.16342,58223.0,58194.0,0.2]
[1617544830631,4.11812,58223.0,58194.0,0.2]
[1617544831033,1.0,58212.0,58201.0,0.10725655]
[1617544831432,1.0,58218.0,58201.0,0.10725655]
[1617544831633,1.0,58221.0,58209.0,3.447]
[1617544832032,1.0,58216.0,58209.0,3.447]
[1617544832232,1.0,58218.0,58209.0,3.447]
[1617544832832,1.0,58219.0,58209.0,3.447]
[1617544833033,1.0,58219.0,58210.0,0.10725655]
[1617544833233,1.0,58218.0,58210.0,0.10725655]
[1617544833433,1.0,58217.0,58210.0,0.10725655]
[1617544833843,1.0,58216.0,58210.0,0.10725655]
[1617544834236,1.0,58219.0,58210.0,0.10725655]
[1617544834638,0.1281,58230.0,58210.0,0.10725655]
[1617544834858,0.1281,58230.0,58209.0,3.447]
[1617544835044,0.10725655,58210.0,58209.0,3.447]
[1617544835245,0.10725655,58210.0,58204.0,0.10725655]
[1617544836060,1.0,58219.0,58205.0,1.5]
[1617544836251,3.1344,58223.0,58205.0,1.65751]
[1617544836438,0.0394377,58232.0,58205.0,1.65751]
[1617544836638,1.0,58229.0,58212.0,2.8261]
[1617544837038,1.0,58228.0,58225.0,0.10725655]
[1617544837237,1.0,58229.0,58225.0,0.27205655]
[1617544837637,1.0,58231.0,58225.0,0.27205655]
[1617544838239,0.0394377,58232.0,58225.0,0.27205655]
[1617544838440,1.0,58231.0,58225.0,0.27205655]
[1617544838639,1.0394377,58232.0,58225.0,0.27205655]
[1617544838839,0.0513,58231.0,58225.0,0.27205655]
[1617544839039,0.10725655,58226.0,58225.0,0.27205655]
[1617544843845,0.10725655,58226.0,58212.0,2.8261]
[1617544844047,1.10725655,58226.0,58196.0,1.7]
[1617544844254,2.5003,58224.0,58196.0,1.7]
[1617544844447,1.0,58223.0,58196.0,1.7]
[1617544844847,2.5003,58224.0,58199.0,1.7]
[1617544845047,2.5003,58224.0,58204.0,1.0]
[1617544845248,2.5003,58224.0,58218.0,0.10725655]
[1617544845448,0.0394377,58232.0,58218.0,0.10725655]
[1617544845651,0.0394377,58232.0,58230.0,2.8635]
[1617544845652,0.0518,58231.0,58230.0,2.8635]
[1617544845849,0.0518,58231.0,58230.0,3.00712]
[1617544846249,0.0394377,58232.0,58230.0,3.00712]
[1617544847251,0.10725655,58231.0,58230.0,0.14362]
[1617544848051,0.10725655,58231.0,58230.0,3.58492]
[1617544849854,1.10725655,58231.0,58230.0,3.58492]
[1617544850254,0.10725655,58231.0,58230.0,3.58492]
[1617544850860,1.10725655,58231.0,58230.0,3.58492]
[1617544851259,1.10725655,58231.0,58230.0,0.14362]
[1617544851459,1.10725655,58231.0,58229.0,0.10725655]
[1617544851658,0.10725655,58231.0,58229.0,0.10725655]
[1617544851858,0.10725655,58231.0,58230.0,2.8563]
[1617544852059,0.10725655,58231.0,58230.0,2.97475]
[1617544855361,0.10725655,58231.0,58230.0,0.11845]
[1617544855561,0.10725655,58231.0,58229.0,0.10725655]
[1617544855761,0.10725655,58231.0,58229.0,3.39075655]
[1617544856764,1.10725655,58231.0,58229.0,0.10725655]
[1617544857367,1.0,58230.0,58229.0,0.10725655]
[1617544857566,0.10725655,58231.0,58229.0,0.10725655]
[1617544858772,1.0,58230.0,58229.0,0.10725655]
[1617544859167,0.10725655,58231.0,58229.0,0.10725655]
[1617544859968,1.0,58230.0,58229.0,0.10725655]
[1617544860166,1.10539,58230.0,58229.0,0.10725655]
[1617544860667,1.10539,58230.0,58213.0,3.1811]
[1617544861066,0.10539,58230.0,58213.0,3.1811]
[1617544861270,0.04952111,58232.0,58219.0,0.21653655]
[1617544861868,0.0394377,58232.0,58219.0,0.21653655]
[1617544862067,1.0394377,58232.0,58219.0,0.21653655]
[1617544862269,0.0394377,58232.0,58219.0,0.21653655]
[1617544863269,0.0394377,58232.0,58231.0,0.23038655]
[1617544865470,0.0394377,58232.0,58231.0,0.12313]
[1617544867172,0.0394377,58232.0,58231.0,0.23038655]
[1617544871875,0.0394377,58232.0,58231.0,0.22068655]
[1617544872476,0.34051725,58232.0,58231.0,0.22068655]
[1617544874278,0.7017996,58232.0,58231.0,0.22068655]
[1617544874776,0.94374213,58232.0,58229.0,3.1775]
[1617544875176,0.7017996,58232.0,58229.0,3.1775]
[1617544875777,0.30108605,58230.0,58229.0,3.1775]
[1617544876177,0.66237323,58230.0,58229.0,3.1775]
[1617544876577,0.30108605,58230.0,58229.0,3.1775]
[1617544877276,0.30108605,58230.0,58229.0,3.28475655]
[1617544878278,0.01013279,58230.0,58229.0,3.28475655]
[1617544878677,0.30107432,58231.0,58229.0,3.28475655]
[1617544879078,0.3010813,58230.0,58229.0,3.28475655]
[1617544882583,1.66278395,58230.0,58229.0,3.28475655]
[1617544882883,1.90473396,58230.0,58229.0,3.28475655]
[1617544883283,0.90473396,58230.0,58229.0,3.1775]
[1617544883882,0.66278395,58230.0,58229.0,3.1775]
[1617544884283,0.9047309,58230.0,58229.0,3.1775]
[1617544884684,0.66278395,58230.0,58229.0,3.1775]
[1617544885284,0.3010813,58230.0,58229.0,3.1775]
[1617544885684,0.66277782,58230.0,58229.0,3.1775]
[1617544889990,0.78773782,58230.0,58229.0,3.1775]
[1617544890191,2.0296857,58230.0,58229.0,3.1775]
[1617544890890,1.0296857,58230.0,58229.0,3.1775]
[1617544891290,1.0296857,58230.0,58229.0,3.28475655]
[1617544891691,2.0296857,58230.0,58229.0,3.28475655]
[1617544891890,1.0296857,58230.0,58229.0,3.28475655]
[1617544892091,2.0296857,58230.0,58229.0,3.28475655]
[1617544892890,0.9047257,58230.0,58229.0,3.28475655]
[1617544893292,0.9047257,58230.0,58229.0,3.63481494]
[1617544893694,0.66277782,58230.0,58229.0,0.45731494]
[1617544893893,1.66277782,58230.0,58229.0,0.45731494]
[1617544894094,2.34776757,58230.0,58229.0,0.45731494]
[1617544894894,1.34776757,58230.0,58229.0,0.45731494]
[1617544895096,2.47240757,58230.0,58229.0,0.45731494]
[1617544895894,2.47240757,58230.0,58229.0,0.35005839]
[1617544896094,4.02380757,58230.0,58229.0,0.35005839]
[1617544896494,4.02380757,58230.0,58225.0,0.35024107]
[1617544896695,1.5,58228.0,58225.0,0.35024107]
[1617544896896,1.10783224,58226.0,58222.0,0.35053238]
[1617544897295,1.10783224,58226.0,58203.0,0.54527259]
[1617544897296,1.61136554,58226.0,58219.0,0.35072479]
[1617544897495,0.10725655,58223.0,58219.0,0.35072479]
[1617544897697,0.0511,58222.0,58219.0,0.35072479]
[1617544897998,1.10789957,58220.0,58218.0,0.35096017]
[1617544898598,0.24198649,58221.0,58219.0,0.06049662]
[1617544898997,0.74530952,58220.0,58212.0,0.42922106]
[1617544899397,0.23379655,58213.0,58212.0,0.42922106]
[1617544899597,0.53596811,58213.0,58212.0,0.42922106]
[1617544899897,0.77795526,58213.0,58212.0,0.42922106]
[1617544900898,1.82885526,58213.0,58212.0,0.42922106]
[1617544901098,1.77795526,58213.0,58212.0,0.42922106]
[1617544902699,0.53596811,58213.0,58212.0,4.01922106]
[1617544902900,0.40942811,58213.0,58212.0,4.01922106]
[1617544903098,0.11742526,58213.0,58212.0,4.01922106]
[1617544903498,0.10937077,58213.0,58212.0,4.76479241]
[1617544903899,0.10725655,58213.0,58212.0,1.37479241]
[1617544904300,0.10725655,58213.0,58212.0,1.08405879]
[1617544905300,0.10937109,58213.0,58212.0,1.08405879]
[1617544905700,0.11239191,58213.0,58212.0,1.08405879]
[1617544906100,1.10725655,58213.0,58212.0,1.08405879]
[1617544906502,1.40945969,58213.0,58212.0,0.59696669]
[1617544907601,0.40945969,58213.0,58212.0,0.59696669]
[1617544908303,0.11239194,58213.0,58212.0,1.08436988]
[1617544908904,0.10725655,58213.0,58212.0,1.08436988]
[1617544909307,0.11239197,58213.0,58212.0,1.08436988]
[1617544909504,1.11239197,58213.0,58212.0,0.97711333]
[1617544909705,1.11742701,58213.0,58212.0,0.97711333]
[1617544910142,1.40947513,58213.0,58212.0,0.42922106]
[1617544910510,2.21570809,58213.0,58207.0,0.42944019]
[1617544910708,2.8482,58209.0,58207.0,0.42944019]
[1617544910926,0.051,58208.0,58207.0,0.42944019]
[1617544911132,0.051,58208.0,58184.0,0.6832003]
[1617544911133,0.051,58208.0,58205.0,0.42966897]
[1617544911514,0.8527686,58206.0,58202.0,0.43015427]
[1617544911717,1.8527686,58206.0,58202.0,0.43015427]
[1617544911911,1.8527686,58206.0,58188.0,0.54746908]
[1617544911912,0.30225519,58203.0,58201.0,0.43027427]
[1617544912124,0.0522,58202.0,58201.0,0.43027427]
[1617544912313,0.30225527,58202.0,58200.0,0.43038686]
[1617544912706,0.30225625,58201.0,58199.0,0.43041773]
[1617544913209,0.3022561,58200.0,58199.0,0.43041773]
[1617544913408,1.40951265,58200.0,58199.0,0.43041773]
[1617544913607,1.10725655,58200.0,58199.0,0.43041773]
[1617544913808,1.65153142,58200.0,58199.0,0.43041773]
[1617544914910,1.10936235,58200.0,58191.0,0.42840411]
[1617544915411,1.0,58200.0,58193.0,0.10725655]
[1617544916813,1.0,58196.0,58193.0,0.10725655]
[1617544917013,1.0,58195.0,58193.0,0.10725655]
[1617544917413,1.0,58195.0,58194.0,3.366]
[1617544917814,1.0,58196.0,58194.0,3.366]
[1617544918013,1.0,58197.0,58194.0,3.366]
[1617544918214,1.0,58197.0,58194.0,3.88448589]
[1617544918614,1.0,58197.0,58194.0,3.79372998]
[1617544918819,1.0,58198.0,58194.0,3.79372998]
[1617544919015,1.0,58202.0,58195.0,0.42756187]
[1617544919414,0.10725655,58196.0,58195.0,0.42756187]
[1617544919615,0.10725655,58196.0,58194.0,3.366]
[1617544920015,0.10725655,58196.0,58195.0,0.42752714]
[1617544921317,0.10725655,58196.0,58194.0,3.366]
[1617544921514,1.10725655,58196.0,58194.0,3.366]
[1617544922214,0.10725655,58196.0,58194.0,3.366]
[1617544922515,1.0,58195.0,58194.0,3.366]
[1617544923214,1.0,58195.0,58193.0,0.10725655]
[1617544923815,0.10725655,58196.0,58193.0,0.10725655]
[1617544923816,1.0514,58194.0,58193.0,0.10725655]
[1617544924215,1.0514,58194.0,58193.0,0.45629539]
[1617544924815,1.0514,58194.0,58193.0,0.10725655]
[1617544926217,1.0514,58194.0,58193.0,0.06525655]
[1617544926415,2.5514,58194.0,58183.0,0.34878176]
[1617544926617,2.5952,58188.0,58183.0,0.30778176]
[1617544926816,2.5952,58188.0,58173.0,0.48441911]
[1617544926817,1.0,58184.0,58173.0,0.4267039]
[1617544927017,1.14417,58184.0,58173.0,0.4267039]
[1617544927617,0.14417,58184.0,58183.0,0.10725655]
[1617544929521,1.25142655,58184.0,58183.0,0.10725655]
[1617544930721,0.10725655,58184.0,58183.0,0.10725655]
[1617544931122,0.10725655,58184.0,58183.0,0.30725655]
[1617544931324,0.00210124,58199.0,58183.0,0.42145655]
[1617544931325,1.0,58194.0,58183.0,0.42145655]
[1617544931524,1.0,58194.0,58193.0,0.10725655]
[1617544932123,1.0,58194.0,58193.0,0.05265655]
[1617544933123,1.0513,58194.0,58193.0,0.05265655]
[1617544933323,1.0,58194.0,58193.0,0.05265655]
[1617544933523,1.10725655,58194.0,58193.0,0.05265655]
[1617544934523,0.10725655,58194.0,58193.0,0.05265655]
[1617544936326,1.10725655,58194.0,58193.0,0.05265655]
[1617544939930,1.23094655,58194.0,58193.0,0.05265655]
[1617544940530,0.23094655,58194.0,58193.0,0.05265655]
[1617544940733,1.23094655,58194.0,58193.0,0.05265655]
[1617544941533,1.23094655,58194.0,58187.0,0.10725655]
[1617544943034,1.0,58188.0,58187.0,0.10725655]
[1617544943634,1.10725655,58188.0,58187.0,0.10725655]
[1617544945037,1.15915655,58188.0,58187.0,0.10725655]
[1617544946939,1.10725655,58188.0,58187.0,0.10725655]
[1617544947344,1.10725655,58188.0,58187.0,0.09465655]
[1617544947938,1.15895655,58188.0,58187.0,0.09465655]
[1617544948137,1.10725655,58188.0,58187.0,0.09465655]
[1617544951143,1.27258655,58188.0,58187.0,0.09465655]
[1617544955550,0.27258655,58188.0,58187.0,0.09465655]
[1617544955750,1.27258655,58188.0,58187.0,0.09465655]
[1617544957953,1.32388655,58188.0,58187.0,0.09465655]
[1617544958154,1.27258655,58188.0,58187.0,0.09465655]
[1617544959956,1.2777006,58188.0,58187.0,0.09465655]
[1617544960357,0.27258655,58188.0,58187.0,0.09465655]
[1617544960556,1.27258655,58188.0,58187.0,0.09465655]
[1617544960757,1.28271479,58188.0,58187.0,0.09465655]
[1617544960956,1.33341479,58188.0,58187.0,0.09465655]
[1617544961158,1.62421625,58188.0,58187.0,0.09465655]
[1617544961558,1.32840065,58188.0,58187.0,0.09465655]
[1617544961757,1.27770065,58188.0,58187.0,0.09465655]
[1617544962360,1.27469235,58188.0,58187.0,0.09465655]
[1617544962759,1.27258655,58188.0,58187.0,0.09465655]
[1617544963159,1.28271442,58188.0,58187.0,0.09465655]
[1617544963761,1.27258655,58188.0,58187.0,0.09465655]
[1617544964162,1.28271453,58188.0,58187.0,0.09465655]
[1617544965063,1.28271453,58188.0,58187.0,0.4450325]
[1617544965064,1.93744774,58188.0,58187.0,0.4450325]
[1617544966264,2.38057405,58188.0,58187.0,0.4450325]
[1617544968472,1.93744774,58188.0,58187.0,0.4450325]
[1617544969306,0.93744774,58188.0,58187.0,0.5637425]
[1617544969571,0.77211774,58188.0,58187.0,0.5637425]
[1617544970171,1.77211774,58188.0,58187.0,0.5637425]
[1617544970873,2.01416595,58188.0,58187.0,0.5637425]
[1617544972275,0.9069094,58188.0,58187.0,0.99164749]
[1617544972477,0.9069094,58188.0,58187.0,4.47324749]
[1617544972676,0.00513432,58188.0,58187.0,4.47324749]
[1617544973077,0.0021141,58189.0,58187.0,5.24953673]
[1617544973476,0.00513424,58190.0,58188.0,0.06050353]
[1617544973676,0.00211404,58192.0,58189.0,0.2]
[1617544974677,0.00211399,58195.0,58192.0,0.2]
[1617544975079,0.00211399,58195.0,58194.0,1.26106677]
[1617544975477,0.0051354,58195.0,58194.0,1.26106677]
[1617544975689,0.0051354,58195.0,58194.0,1.36832332]
[1617544975889,0.00211458,58195.0,58194.0,1.36832332]
[1617544976284,0.00211455,58197.0,58194.0,1.42882456]
[1617544976686,0.00211455,58197.0,58196.0,1.2591852]
[1617544977182,0.1093672,58200.0,58196.0,0.7748832]
[1617544977584,0.1093672,58200.0,58199.0,0.77358547]
[1617544977981,0.1093672,58200.0,58199.0,0.91631547]
[1617544978182,0.1093672,58200.0,58199.0,0.49084346]
[1617544978183,0.11740795,58200.0,58199.0,0.49084346]
[1617544978582,0.11238252,58200.0,58199.0,0.55134547]
[1617544979083,0.11740797,58200.0,58199.0,0.55134547]
[1617544979683,0.11238241,58200.0,58199.0,0.55134547]
[1617544981086,0.00512586,58200.0,58199.0,0.55134547]
[1617544981485,0.00211058,58200.0,58199.0,1.17674057]
[1617544981888,0.30162173,58203.0,58199.0,1.17674057]
[1617544981889,0.00211049,58203.0,58199.0,1.17674057]
[1617544982588,0.00211045,58205.0,58202.0,0.97278353]
[1617544982986,0.00211045,58205.0,58204.0,0.34772559]
[1617544983786,0.00211045,58205.0,58204.0,0.45498214]
[1617544984288,0.00211038,58206.0,58204.0,0.94030313]
[1617544984890,0.00211038,58207.0,58204.0,0.94030313]
[1617544985291,0.01014992,58208.0,58206.0,0.34761584]
[1617544985691,0.00211037,58207.0,58206.0,0.42474395]
[1617544986094,0.00211035,58209.0,58207.0,0.42463605]
[1617544986492,0.01014978,58211.0,58208.0,0.77192373]
[1617544986493,0.00210959,58211.0,58208.0,0.77192373]
[1617544986891,0.00210959,58211.0,58209.0,0.2]
[1617544987093,0.00210959,58213.0,58209.0,0.2]
[1617544987495,0.00210959,58213.0,58212.0,0.50938255]
[1617544987894,0.0101466,58213.0,58212.0,0.6166391]
[1617544988493,0.0101466,58213.0,58212.0,0.67713138]
[1617544988893,0.30148462,58214.0,58212.0,0.52958883]
[1617544989093,0.30144498,58213.0,58212.0,1.52958883]
[1617544989293,0.30144498,58213.0,58212.0,0.52958883]
[1617544989494,0.00210906,58228.0,58212.0,1.7808996]
[1617544989695,0.00210906,58228.0,58213.0,1.5]
[1617544989894,0.01014358,58230.0,58213.0,1.5]
[1617544989895,0.01014358,58230.0,58227.0,0.10725655]
[1617544990106,0.10935407,58240.0,58227.0,0.21598655]
[1617544990906,0.00209754,58239.0,58227.0,0.21598655]
[1617544991119,0.00209754,58239.0,58228.0,1.5]
[1617544991319,0.0509,58231.0,58229.0,1.0]
[1617544991496,0.10935405,58240.0,58229.0,1.0]
[1617544991696,0.10725655,58240.0,58227.0,0.21598655]
[1617544991897,0.10725655,58240.0,58227.0,1.71598655]
[1617544992298,0.10725655,58240.0,58227.0,0.21598655]
[1617544992899,0.10725655,58240.0,58227.0,1.21598655]
[1617544993099,0.10725655,58240.0,58227.0,0.21598655]
[1617544994599,0.10725655,58240.0,58227.0,1.71598655]
[1617544995400,0.10725655,58240.0,58227.0,0.21598655]
[1617544997602,0.10725655,58240.0,58227.0,0.10725655]
[1617544999406,0.10725655,58240.0,58227.0,1.60725655]
[1617544999808,0.10725655,58231.0,58227.0,1.60725655]
[1617545000007,0.10725655,58231.0,58227.0,1.71680655]
[1617545000405,0.10725655,58231.0,58227.0,0.21680655]
[1617545001205,0.10725655,58231.0,58227.0,0.10725655]
[1617545001407,0.00209209,58245.0,58230.0,3.1126]
[1617545001808,1.00508079,58246.0,58230.0,3.1126]
[1617545001809,0.10725655,58237.0,58230.0,3.1126]
[1617545004410,0.10725655,58237.0,58231.0,1.5]
[1617545004810,0.10725655,58237.0,58227.0,0.10725655]
[1617545006412,0.10725655,58237.0,58227.0,1.60725655]
[1617545007412,0.10725655,58237.0,58227.0,0.10725655]
[1617545010013,0.10725655,58230.0,58227.0,2.92555655]
[1617545011115,1.0,58248.0,58227.0,4.42555655]
[1617545011316,0.07,58250.0,58227.0,4.42555655]
[1617545011517,0.07,58250.0,58227.0,1.60725655]
[1617545011917,1.0,58246.0,58231.0,2.7488]
[1617545012118,1.0,58243.0,58231.0,2.7488]
[1617545012518,1.0,58242.0,58231.0,2.7488]
[1617545013921,0.14669425,58232.0,58231.0,2.7488]
[1617545017625,0.14669425,58232.0,58231.0,4.2488]
[1617545018039,0.0394377,58232.0,58231.0,2.7488]
[1617545024035,0.14669425,58232.0,58231.0,2.7488]
[1617545025435,0.14669425,58232.0,58231.0,3.09400285]
[1617545026936,0.0394377,58232.0,58231.0,4.59400285]
[1617545027137,0.0394377,58232.0,58231.0,2.04520285]
[1617545027337,0.0394377,58232.0,58231.0,3.04520285]
[1617545029042,0.0394377,58232.0,58231.0,1.84520285]
[1617545029440,0.0394377,58232.0,58231.0,0.34520285]
[1617545029638,0.0394377,58232.0,58231.0,2.84520285]
[1617545030442,0.0394377,58232.0,58231.0,1.90566755]
[1617545031040,0.0911377,58232.0,58231.0,1.90566755]
[1617545031241,0.0911377,58232.0,58231.0,4.91826755]
[1617545031441,0.0394377,58232.0,58231.0,3.41826755]
[1617545033443,0.0394377,58232.0,58231.0,5.04128755]
[1617545036044,0.0394377,58232.0,58231.0,5.46318475]
[1617545036645,0.0394377,58232.0,58231.0,6.46318475]
[1617545036849,0.0394377,58232.0,58231.0,5.46318475]
[1617545037045,0.0394377,58232.0,58231.0,3.96318475]
[1617545037247,0.0394377,58232.0,58231.0,4.44514473]
[1617545038248,0.0394377,58232.0,58231.0,5.94514473]
[1617545039048,0.0394377,58232.0,58231.0,6.08622298]
[1617545039249,0.0394377,58232.0,58231.0,7.08622298]
[1617545040451,0.0394377,58232.0,58231.0,3.07362298]
[1617545040651,0.0394377,58232.0,58231.0,4.07362298]